[Event "VIII Open Semana Santa-B 2024"]
[Site "San Vicente del Raspeig"]
[Date "2024.03.30"]
[Round "6.7"]
[White "Prochaieva, Tina"]
[Black "Portillo Alcalde, Jose Maria"]
[Result "1/2-1/2"]
[ECO "E22"]
[WhiteElo "1792"]
[BlackElo "1632"]
[Annotator "NA RC COMBH"]
[PlyCount "67"]
[EventDate "2024.03.27"]
[EventType "swiss"]
[EventCountry "ESP"]
[SourceTitle "playchess.com"]
[Source "ChessBase"]
[SourceQuality "1"]
[TimeControl "5400+30"]

1. d4 {[%emt 0:00:08]} Nf6 {[%emt 0:00:07]} 2. c4 {[%emt 0:00:20]} e6 {[%emt 0:00:05]} 3. Nc3 {[%emt 0:00:21]} Bb4 {[%emt 0:00:29]} 4. Qb3 {[%emt 0:00:25]} c5 {[%emt 0:04:41]} 5. dxc5 {[%emt 0:01:19]} Bxc5 {[%emt 0:00:35]} 6. Bg5 {[%emt 0:02:57]} b6 {[%emt 0:01:20]} 7. Nf3 {[%emt 0:03:48]} Bb7 {[%emt 0:00:31]} 8. Na4 {[%emt 0:01:56]} Bxf2+ {[%emt 0:02:52]} 9. Kxf2 {[%emt 0:05:53]} Ne4+ {[%emt 0:01:07]} 10. Kg1 {[%emt 0:00:44]} Nxg5 {[%emt 0:00:42]} 11. Rd1 {[%emt 0:06:06]} O-O {[%emt 0:03:04]} 12. Qe3 {[%emt 0:03:19]} Ne4 {[%emt 0:03:09]} 13. Rd4 {[%emt 0:05:30]} Nf6 {[%emt 0:01:37]} 14. Nc3 {[%emt 0:01:09]} Nc6 {[%emt 0:05:01]} 15. Rd2 {[%emt 0:04:45]} a6 {[%emt 0:05:39]} 16. g3 {[%emt 0:09:01]} Ne7 {[%emt 0:02:56]} 17. Bg2 {[%emt 0:00:42]} Qc7 {[%emt 0:01:32]} 18. b3 {[%emt 0:07:15]} Rac8 {[%emt 0:00:13]} 19. Ne5 {[%emt 0:03:12]} Bxg2 {[%emt 0:03:39]} 20. Kxg2 {[%emt 0:00:00]} d6 {[%emt 0:03:46]} 21. Nf3 {[%emt 0:00:36]} d5 {[%emt 0:01:44]} 22. Na4 {[%emt 0:05:34]} Rb8 {[%emt 0:06:03]} 23. Rc1 {[%emt 0:01:14]} Qb7 {[%emt 0:01:45]} 24. Rdc2 {[%emt 0:00:43]} Rfc8 {[%emt 0:06:45]} 25. c5 {[%emt 0:01:29]} bxc5 {[%emt 0:01:44]} 26. Nxc5 {[%emt 0:00:12]} Qb6 {[%emt 0:05:26]} 27. Qd3 {[%emt 0:01:52]} Qd8 {[%emt 0:09:33]} 28. Nxa6 {[%emt 0:02:36]} Rxc2 {[%emt 0:00:46]} 29. Rxc2 {[%emt 0:00:54]} Rc8 {[%emt 0:01:33]} 30. Rxc8 {[%emt 0:05:20]} Qxc8 {[%emt 0:00:16]} 31. Nb4 {[%emt 0:02:03]} Nf5 {[%emt 0:01:22]} 32. Nc2 {[%emt 0:01:15]} Ne4 {[%emt 0:01:48]} 33. Ne3 {[%emt 0:02:15]} Nxe3+ {[%emt 0:02:06]} 34. Qxe3 {[%emt 0:00:06]} 1/2-1/2

[Event "VIII Open Semana Santa-B 2024"]
[Site "San Vicente del Raspeig"]
[Date "2024.03.30"]
[Round "6.8"]
[White "Herrero Ferrando, Salvador"]
[Black "Carnero Rodriguez, Alvaro"]
[Result "1/2-1/2"]
[ECO "E68"]
[WhiteElo "1854"]
[BlackElo "1743"]
[Annotator "NA RC COMBH"]
[PlyCount "72"]
[EventDate "2024.03.27"]
[EventType "swiss"]
[EventCountry "ESP"]
[SourceTitle "playchess.com"]
[Source "ChessBase"]
[SourceQuality "1"]
[TimeControl "5400+30"]

1. d4 {[%emt 0:00:03]} Nf6 {[%emt 0:00:13]} 2. c4 {[%emt 0:00:08]} g6 {[%emt 0:00:17]} 3. Nf3 {[%emt 0:00:28]} Bg7 {[%emt 0:01:18]} 4. g3 {[%emt 0:01:07]} d6 {[%emt 0:00:23]} 5. Bg2 {[%emt 0:00:18]} O-O {[%emt 0:00:55]} 6. Nc3 {[%emt 0:01:14]} Nbd7 {[%emt 0:00:58]} 7. O-O {[%emt 0:01:01]} e5 {[%emt 0:01:36]} 8. e4 {[%emt 0:01:05]} b6 {[%emt 0:03:26]} 9. Rb1 {[%emt 0:16:23]} Bb7 {[%emt 0:04:05]} 10. d5 {[%emt 0:00:35]} a5 {[%emt 0:03:14]} 11. b3 {[%emt 0:00:47]} Nc5 {[%emt 0:01:59]} 12. Qc2 {[%emt 0:03:58]} h6 {[%emt 0:02:33]} 13. Bh3 {[%emt 0:09:09]} Bc8 {[%emt 0:03:34]} 14. Bxc8 {[%emt 0:06:22]} Qxc8 {[%emt 0:01:40]} 15. Kg2 {[%emt 0:00:29]} Nh5 {[%emt 0:07:15]} 16. Nh4 {[%emt 0:02:10]} Kh7 {[%emt 0:03:52]} 17. Qe2 {[%emt 0:02:33]} Bf6 {[%emt 0:04:34]} 18. Nf3 {[%emt 0:01:21]} Qd7 {[%emt 0:08:30]} 19. Bd2 {[%emt 0:01:11]} Bg7 {[%emt 0:01:52]} 20. Nh4 {[%emt 0:01:44]} Nf6 {[%emt 0:01:39]} 21. h3 {[%emt 0:01:59]} Ng8 {[%emt 0:02:34]} 22. Kh2 {[%emt 0:11:46]} Ne7 {[%emt 0:01:36]} 23. Ng2 {[%emt 0:05:08]} f5 {[%emt 0:02:04]} 24. f4 {[%emt 0:01:27]} exf4 {[%emt 0:03:17]} 25. gxf4 {[%emt 0:01:53]} fxe4 {[%emt 0:01:35]} 26. Nxe4 {[%emt 0:00:50]} Nxe4 {[%emt 0:00:31]} 27. Qxe4 {[%emt 0:00:08]} Rae8 {[%emt 0:02:21]} 28. Qd3 {[%emt 0:03:20]} Nf5 {[%emt 0:02:09]} 29. Rbe1 {[%emt 0:01:22]} Rxe1 {[%emt 0:01:03]} 30. Rxe1 {[%emt 0:00:17]} Re8 {[%emt 0:00:15]} 31. Re4 {[%emt 0:06:43]} Kg8 {[%emt 0:02:48]} 32. Qe2 {[%emt 0:06:28]} Kf7 {[%emt 0:03:43]} 33. Rxe8 {[%emt 0:01:09]} Qxe8 {[%emt 0:00:08]} 34. Qxe8+ {[%emt 0:00:25]} Kxe8 {[%emt 0:00:10]} 35. Ne3 {[%emt 0:05:01]} Kf7 {[%emt 0:05:49]} 36. Nxf5 {[%emt 0:01:22]} gxf5 {[%emt 0:00:12]} 1/2-1/2

[Event "VIII Open Semana Santa-B 2024"]
[Site "San Vicente del Raspeig"]
[Date "2024.03.31"]
[Round "7.1"]
[White "Ashton, Alannah"]
[Black "Carretero Ajo, Jesus"]
[Result "0-1"]
[ECO "C02"]
[WhiteElo "1839"]
[BlackElo "1876"]
[Annotator "NA RC COMBH"]
[PlyCount "100"]
[EventDate "2024.03.27"]
[EventType "swiss"]
[EventCountry "ESP"]
[SourceTitle "playchess.com"]
[Source "ChessBase"]
[SourceQuality "1"]
[TimeControl "5400+30"]

1. e4 {[%emt 0:00:04]} e6 {[%emt 0:00:11]} 2. d4 {[%emt 0:00:05]} d5 {[%emt 0:00:10]} 3. e5 {[%emt 0:00:03]} c5 {[%emt 0:00:10]} 4. c3 {[%emt 0:00:06]} Nc6 {[%emt 0:00:06]} 5. Nf3 {[%emt 0:00:04]} Qb6 {[%emt 0:00:08]} 6. Bd3 {[%emt 0:00:25]} cxd4 {[%emt 0:00:56]} 7. O-O {[%emt 0:00:07]} Bd7 {[%emt 0:01:31]} 8. Re1 {[%emt 0:00:22]} Nge7 {[%emt 0:04:09]} 9. h4 {[%emt 0:00:39]} Na5 {[%emt 0:02:36]} 10. Nxd4 {[%emt 0:06:31]} Nec6 {[%emt 0:00:52]} 11. Nxc6 {[%emt 0:24:09]} Nxc6 {[%emt 0:02:12]} 12. Qe2 {[%emt 0:02:09]} Bc5 {[%emt 0:08:54]} 13. b4 {[%emt 0:07:40]} Be7 {[%emt 0:01:17]} 14. Qg4 {[%emt 0:01:19]} g6 {[%emt 0:02:21]} 15. a3 {[%emt 0:02:26]} O-O-O {[%emt 0:04:16]} 16. c4 {[%emt 0:03:08]} dxc4 {[%emt 0:05:28]} 17. Qxc4 {[%emt 0:01:05]} Qd4 {[%emt 0:00:17]} 18. Qc2 {[%emt 0:49:08]} Kb8 {[%emt 0:03:13]} 19. Re4 {[%emt 0:00:00]} Qxa1 {[%emt 0:28:54]} 20. Bb2 {[%emt 0:00:00]} Nd4 {[%emt 0:00:02]} 21. Rxd4 {[%emt 0:00:00]} Ba4 {[%emt 0:00:03]} 22. Bxa1 {[%emt 0:00:00]} Bxc2 {[%emt 0:03:33]} 23. Bxc2 {[%emt 0:00:00]} Rxd4 {[%emt 0:00:39]} 24. Bxd4 {[%emt 0:00:00]} Rc8 {[%emt 0:00:13]} 25. Nc3 {[%emt 0:00:00]} Rc4 {[%emt 0:00:39]} 26. Nb5 {[%emt 0:00:00]} Rxc2 {[%emt 0:00:39]} 27. Bxa7+ {[%emt 0:00:00]} Kc8 {[%emt 0:01:31]} 28. g3 {[%emt 0:00:00]} Kd7 {[%emt 0:02:00]} 29. Bb8 {[%emt 0:00:00]} Rd2 {[%emt 0:05:43]} 30. Nd6 {[%emt 0:00:00]} Bxd6 {[%emt 0:01:45]} 31. Bxd6 {[%emt 0:00:00]} Rd3 {[%emt 0:00:17]} 32. a4 {[%emt 0:00:02]} f6 {[%emt 0:01:41]} 33. Bc5 {[%emt 0:02:49]} fxe5 {[%emt 0:00:43]} 34. a5 {[%emt 0:00:45]} Kc6 {[%emt 0:00:38]} 35. Kg2 {[%emt 0:00:46]} Kb5 {[%emt 0:01:54]} 36. Kh3 {[%emt 0:00:57]} h5 {[%emt 0:00:27]} 37. Kg2 {[%emt 0:00:32]} Rc3 {[%emt 0:00:58]} 38. f3 {[%emt 0:00:58]} Rxc5 {[%emt 0:02:12]} 39. bxc5 {[%emt 0:00:03]} Kxc5 {[%emt 0:00:13]} 40. Kf2 {[%emt 0:00:33]} Kb5 {[%emt 0:00:01]} 41. Ke3 {[%emt 0:00:06]} Kxa5 {[%emt 0:00:04]} 42. Ke4 {[%emt 0:00:06]} b5 {[%emt 0:00:27]} 43. Kxe5 {[%emt 0:00:03]} b4 {[%emt 0:00:01]} 44. Kxe6 {[%emt 0:00:08]} b3 {[%emt 0:00:13]} 45. Kf6 {[%emt 0:00:05]} b2 {[%emt 0:00:32]} 46. Kxg6 {[%emt 0:00:01]} b1=Q+ {[%emt 0:01:57]} 47. Kg5 {[%emt 0:00:35]} Qb5+ {[%emt 0:00:40]} 48. Kf4 {[%emt 0:00:18]} Qc4+ {[%emt 0:01:06]} 49. Kf5 {[%emt 0:00:54]} Qd5+ {[%emt 0:00:06]} 50. Kf4 {[%emt 0:00:07]} Qd4+ {[%emt 0:00:46]} 0-1

[Event "VIII Open Semana Santa-B 2024"]
[Site "San Vicente del Raspeig"]
[Date "2024.03.31"]
[Round "7.2"]
[White "Herrera Pezo, Enoch"]
[Black "Zhuravlev, Matvey R"]
[Result "0-1"]
[ECO "B33"]
[WhiteElo "1831"]
[BlackElo "1774"]
[Annotator "NA RC COMBH"]
[PlyCount "60"]
[EventDate "2024.03.27"]
[EventType "swiss"]
[EventCountry "ESP"]
[SourceTitle "playchess.com"]
[Source "ChessBase"]
[SourceQuality "1"]
[TimeControl "5400+30"]

1. e4 {[%emt 0:00:14]} c5 {[%emt 0:00:06]} 2. Nf3 {[%emt 0:00:35]} Nc6 {[%emt 0:00:06]} 3. d4 {[%emt 0:00:07]} cxd4 {[%emt 0:00:05]} 4. Nxd4 {[%emt 0:00:07]} Nf6 {[%emt 0:00:05]} 5. Nc3 {[%emt 0:00:11]} e5 {[%emt 0:00:05]} 6. Ndb5 {[%emt 0:00:09]} d6 {[%emt 0:00:06]} 7. Bg5 {[%emt 0:00:37]} a6 {[%emt 0:00:05]} 8. Na3 {[%emt 0:01:01]} b5 {[%emt 0:00:08]} 9. Nd5 {[%emt 0:00:11]} Be7 {[%emt 0:00:05]} 10. Bxf6 {[%emt 0:00:19]} Bxf6 {[%emt 0:00:06]} 11. c3 {[%emt 0:02:55]} O-O {[%emt 0:04:09]} 12. Nc2 {[%emt 0:00:19]} Rb8 {[%emt 0:00:30]} 13. Be2 {[%emt 0:00:55]} Bg5 {[%emt 0:00:46]} 14. O-O {[%emt 0:03:24]} Ne7 {[%emt 0:05:07]} 15. Nce3 {[%emt 1:26:56]} Bxe3 {[%emt 0:02:31]} 16. Nxe3 {[%emt 0:00:00]} Bb7 {[%emt 0:00:10]} 17. Bf3 {[%emt 0:00:00]} Qc7 {[%emt 0:05:06]} 18. Qc2 {[%emt 0:00:00]} f5 {[%emt 0:04:10]} 19. Rfd1 {[%emt 0:00:00]} f4 {[%emt 0:01:42]} 20. Nf1 {[%emt 0:00:00]} Ng6 {[%emt 0:02:57]} 21. Bg4 {[%emt 0:00:00]} Kh8 {[%emt 0:00:57]} 22. Be6 {[%emt 0:00:00]} Qe7 {[%emt 0:07:07]} 23. Bd5 {[%emt 0:00:00]} f3 {[%emt 0:02:47]} 24. g3 {[%emt 0:00:00]} Bc8 {[%emt 0:02:08]} 25. Qd2 {[%emt 0:00:00]} Bh3 {[%emt 0:04:05]} 26. Ne3 {[%emt 0:00:00]} Nf4 {[%emt 0:06:00]} 27. Bb3 {[%emt 0:00:00]} Qg5 {[%emt 0:03:07]} 28. Bc2 {[%emt 0:00:00]} Ne2+ {[%emt 0:01:14]} 29. Qxe2 {[%emt 0:00:00]} fxe2 {[%emt 0:00:08]} 30. Rxd6 {[%emt 0:00:00]} Qxe3 {[%emt 0:00:14]} 0-1

[Event "VIII Open Semana Santa-B 2024"]
[Site "San Vicente del Raspeig"]
[Date "2024.03.31"]
[Round "7.3"]
[White "Mochon Bernal, Jorge"]
[Black "Garcia Ruano, Juan Carlos"]
[Result "0-1"]
[ECO "B23"]
[WhiteElo "1762"]
[BlackElo "1885"]
[Annotator "NA RC COMBH"]
[PlyCount "70"]
[EventDate "2024.03.27"]
[EventType "swiss"]
[EventCountry "ESP"]
[SourceTitle "playchess.com"]
[Source "ChessBase"]
[SourceQuality "1"]
[TimeControl "5400+30"]

1. e4 {[%emt 0:09:30]} c5 {[%emt 0:01:07]} 2. Nc3 {[%emt 0:00:15]} Nc6 {[%emt 0:00:13]} 3. Bb5 {[%emt 0:00:24]} g6 {[%emt 0:00:48]} 4. Bxc6 {[%emt 0:00:28]} dxc6 {[%emt 0:00:54]} 5. f4 {[%emt 0:00:26]} Bg7 {[%emt 0:00:19]} 6. Nf3 {[%emt 0:00:23]} Bg4 {[%emt 0:07:54]} 7. O-O {[%emt 0:00:45]} Qc7 {[%emt 0:00:23]} 8. d3 {[%emt 0:00:17]} O-O-O {[%emt 0:01:05]} 9. Qe1 {[%emt 0:01:34]} Bxf3 {[%emt 0:00:20]} 10. Rxf3 {[%emt 0:00:06]} Bd4+ {[%emt 0:01:06]} 11. Kh1 {[%emt 0:08:26]} h5 {[%emt 0:12:22]} 12. Ne2 {[%emt 0:01:17]} Bg7 {[%emt 0:02:31]} 13. Rb1 {[%emt 0:07:04]} e6 {[%emt 0:04:05]} 14. b4 {[%emt 0:00:50]} cxb4 {[%emt 0:02:33]} 15. Qxb4 {[%emt 0:02:28]} c5 {[%emt 0:02:49]} 16. Qc4 {[%emt 0:10:32]} Ne7 {[%emt 0:04:52]} 17. a4 {[%emt 0:06:00]} Rd6 {[%emt 0:08:10]} 18. f5 {[%emt 0:11:19]} gxf5 {[%emt 0:01:50]} 19. exf5 {[%emt 0:01:42]} Nxf5 {[%emt 0:11:14]} 20. Rxf5 {[%emt 0:12:18]} exf5 {[%emt 0:00:36]} 21. Bf4 {[%emt 0:00:08]} Rb6 {[%emt 0:01:37]} 22. Bxc7 {[%emt 0:01:11]} Rxb1+ {[%emt 0:00:07]} 23. Ng1 {[%emt 0:00:04]} Bd4 {[%emt 0:00:11]} 24. h3 {[%emt 0:01:08]} Kxc7 {[%emt 0:00:13]} 25. Qxf7+ {[%emt 0:00:37]} Kb6 {[%emt 0:00:13]} 26. c3 {[%emt 0:07:45]} Bxg1 {[%emt 0:01:16]} 27. Qa2 {[%emt 0:03:06]} Re1 {[%emt 0:01:40]} 28. Qb3+ {[%emt 0:02:31]} Kc6 {[%emt 0:00:38]} 29. Qb5+ {[%emt 0:00:23]} Kc7 {[%emt 0:00:07]} 30. Qc4 {[%emt 0:03:10]} Rhe8 {[%emt 0:01:08]} 31. Qf4+ {[%emt 0:00:22]} Kb6 {[%emt 0:02:02]} 32. a5+ {[%emt 0:01:24]} Kxa5 {[%emt 0:00:50]} 33. Qc7+ {[%emt 0:00:42]} Ka6 {[%emt 0:01:26]} 34. Qd6+ {[%emt 0:02:54]} b6 {[%emt 0:00:09]} 35. g3 {[%emt 0:02:56]} R8e2 {[%emt 0:00:54]} 0-1

[Event "VIII Open Semana Santa-B 2024"]
[Site "San Vicente del Raspeig"]
[Date "2024.03.31"]
[Round "7.4"]
[White "Torralba Brosa, Marc"]
[Black "Jayawarna, Thisumi"]
[Result "1/2-1/2"]
[ECO "B21"]
[WhiteElo "1869"]
[BlackElo "1774"]
[Annotator "NA RC COMBH"]
[PlyCount "74"]
[EventDate "2024.03.27"]
[EventType "swiss"]
[EventCountry "ESP"]
[SourceTitle "playchess.com"]
[Source "ChessBase"]
[SourceQuality "1"]
[TimeControl "5400+30"]

1. e4 {[%emt 0:00:03]} c5 {[%emt 0:00:08]} 2. Nf3 {[%emt 0:00:04]} e6 {[%emt 0:00:08]} 3. d4 {[%emt 0:00:15]} cxd4 {[%emt 0:00:11]} 4. c3 {[%emt 0:00:04]} dxc3 {[%emt 0:00:20]} 5. Nxc3 {[%emt 0:00:03]} Nc6 {[%emt 0:00:49]} 6. Bc4 {[%emt 0:00:07]} Bb4 {[%emt 0:01:14]} 7. O-O {[%emt 0:00:04]} Nge7 {[%emt 0:01:06]} 8. Qe2 {[%emt 0:01:17]} Bxc3 {[%emt 0:04:40]} 9. bxc3 {[%emt 0:00:01]} O-O {[%emt 0:02:19]} 10. Rd1 {[%emt 0:00:01]} Qc7 {[%emt 0:03:49]} 11. Ba3 {[%emt 0:01:09]} Re8 {[%emt 0:05:09]} 12. Bd6 {[%emt 0:00:09]} Qa5 {[%emt 0:00:55]} 13. Qd3 {[%emt 0:03:16]} Ng6 {[%emt 0:09:21]} 14. Qe3 {[%emt 0:06:26]} Nge5 {[%emt 0:06:33]} 15. Bb3 {[%emt 0:00:31]} h6 {[%emt 0:04:35]} 16. Nd4 {[%emt 0:01:48]} a6 {[%emt 0:06:07]} 17. f4 {[%emt 0:01:55]} Ng4 {[%emt 0:06:41]} 18. Qh3 {[%emt 0:02:02]} Nf6 {[%emt 0:01:44]} 19. Nxc6 {[%emt 0:06:38]} dxc6 {[%emt 0:02:25]} 20. Be5 {[%emt 0:01:04]} Nxe4 {[%emt 0:17:01]} 21. Bc2 {[%emt 0:01:07]} f5 {[%emt 0:01:36]} 22. Bxe4 {[%emt 0:04:45]} fxe4 {[%emt 0:00:21]} 23. Rd4 {[%emt 0:00:58]} Qc5 {[%emt 0:03:53]} 24. Rad1 {[%emt 0:00:38]} Qf8 {[%emt 0:02:04]} 25. Qg3 {[%emt 0:01:13]} Qf7 {[%emt 0:01:42]} 26. Rd8 {[%emt 0:03:16]} Rxd8 {[%emt 0:00:44]} 27. Rxd8+ {[%emt 0:00:03]} Kh7 {[%emt 0:00:11]} 28. Bd6 {[%emt 0:03:24]} b5 {[%emt 0:02:48]} 29. Rf8 {[%emt 0:00:05]} Qd7 {[%emt 0:01:01]} 30. Qe3 {[%emt 0:04:26]} g6 {[%emt 0:05:51]} 31. Qd4 {[%emt 0:06:39]} Qg7 {[%emt 0:02:02]} 32. Rf6 {[%emt 0:05:13]} Ra7 {[%emt 0:02:31]} 33. Bf8 {[%emt 0:02:11]} Qd7 {[%emt 0:00:27]} 34. Qxe4 {[%emt 0:00:02]} Qd1+ {[%emt 0:00:35]} 35. Kf2 {[%emt 0:00:45]} Qd2+ {[%emt 0:00:18]} 36. Kf1 {[%emt 0:00:38]} Qd1+ {[%emt 0:00:37]} 37. Kf2 {[%emt 0:00:11]} Qd2+ {[%emt 0:07:04]} 1/2-1/2

[Event "VIII Open Semana Santa-B 2024"]
[Site "San Vicente del Raspeig"]
[Date "2024.03.31"]
[Round "7.5"]
[White "Pardo Ruiz, Beatriz"]
[Black "Serna Puerto, Lorenzo"]
[Result "1-0"]
[ECO "B27"]
[WhiteElo "1757"]
[BlackElo "1825"]
[Annotator "NA RC COMBH"]
[PlyCount "53"]
[EventDate "2024.03.27"]
[EventType "swiss"]
[EventCountry "ESP"]
[SourceTitle "playchess.com"]
[Source "ChessBase"]
[SourceQuality "1"]
[TimeControl "5400+30"]

1. e4 {[%emt 0:00:03]} c5 {[%emt 0:00:05]} 2. Nf3 {[%emt 0:00:08]} g6 {[%emt 0:00:08]} 3. c3 {[%emt 0:01:18]} d5 {[%emt 0:00:33]} 4. e5 {[%emt 0:09:18]} Bg7 {[%emt 0:01:01]} 5. d4 {[%emt 0:04:21]} cxd4 {[%emt 0:00:09]} 6. cxd4 {[%emt 0:00:12]} Bg4 {[%emt 0:00:29]} 7. Nbd2 {[%emt 0:01:42]} Nh6 {[%emt 0:03:29]} 8. h3 {[%emt 0:01:04]} Bxf3 {[%emt 0:00:57]} 9. Nxf3 {[%emt 0:00:27]} O-O {[%emt 0:00:47]} 10. Bd3 {[%emt 0:01:05]} Nc6 {[%emt 0:02:29]} 11. Qc2 {[%emt 0:16:46]} Qb6 {[%emt 0:04:56]} 12. Be3 {[%emt 1:00:06]} Rac8 {[%emt 0:04:43]} 13. Qb1 {[%emt 0:00:00]} Qb4+ {[%emt 0:05:16]} 14. Bd2 {[%emt 0:00:00]} Qb6 {[%emt 0:00:08]} 15. Be3 {[%emt 0:00:00]} Nb4 {[%emt 0:00:07]} 16. b3 {[%emt 0:00:00]} Rc3 {[%emt 0:07:14]} 17. O-O {[%emt 0:00:00]} Rxd3 {[%emt 0:01:02]} 18. a3 {[%emt 0:00:00]} Nc2 {[%emt 0:16:20]} 19. Qxc2 {[%emt 0:00:00]} Qxb3 {[%emt 0:00:51]} 20. Qc7 {[%emt 0:00:00]} Rc3 {[%emt 0:03:52]} 21. Qd7 {[%emt 0:00:00]} Rfc8 {[%emt 0:02:02]} 22. Rfb1 {[%emt 0:00:00]} Qc4 {[%emt 0:07:50]} 23. Qxb7 {[%emt 0:00:00]} Nf5 {[%emt 0:10:38]} 24. Bd2 {[%emt 0:00:00]} Rd3 {[%emt 0:04:00]} 25. Rc1 {[%emt 0:00:00]} Rc7 {[%emt 0:04:06]} 26. Qxc7 {[%emt 0:00:00]} Qa4 {[%emt 0:00:43]} 27. Qd8+ {[%emt 0:07:30]} 1-0

[Event "VIII Open Semana Santa-B 2024"]
[Site "San Vicente del Raspeig"]
[Date "2024.03.31"]
[Round "7.6"]
[White "Garceran Perez, Alejandro"]
[Black "Elizondo Marquet, Juan Marcos"]
[Result "0-1"]
[ECO "D05"]
[WhiteElo "1661"]
[BlackElo "1813"]
[Annotator "NA RC COMBH"]
[PlyCount "96"]
[EventDate "2024.03.27"]
[EventType "swiss"]
[EventCountry "ESP"]
[SourceTitle "playchess.com"]
[Source "ChessBase"]
[SourceQuality "1"]
[TimeControl "5400+30"]

1. d4 {[%emt 0:00:05]} Nf6 {[%emt 0:01:36]} 2. Nf3 {[%emt 0:00:30]} e6 {[%emt 0:00:10]} 3. e3 {[%emt 0:00:25]} d5 {[%emt 0:01:23]} 4. Bd3 {[%emt 0:00:11]} c5 {[%emt 0:00:10]} 5. c3 {[%emt 0:00:11]} Nbd7 {[%emt 0:00:21]} 6. Nbd2 {[%emt 0:00:26]} b6 {[%emt 0:00:20]} 7. e4 {[%emt 0:00:43]} dxe4 {[%emt 0:00:30]} 8. Nxe4 {[%emt 0:00:09]} Bb7 {[%emt 0:00:52]} 9. Bg5 {[%emt 0:01:16]} Be7 {[%emt 0:01:43]} 10. Nxf6+ {[%emt 0:01:29]} Bxf6 {[%emt 0:00:44]} 11. Bxf6 {[%emt 0:04:32]} Qxf6 {[%emt 0:00:27]} 12. Bb5 {[%emt 0:00:55]} Bxf3 {[%emt 0:06:55]} 13. Bxd7+ {[%emt 0:03:24]} Kxd7 {[%emt 0:00:07]} 14. gxf3 {[%emt 0:00:44]} cxd4 {[%emt 0:00:36]} 15. Qa4+ {[%emt 0:01:40]} Ke7 {[%emt 0:07:09]} 16. Qb4+ {[%emt 0:01:04]} Ke8 {[%emt 0:00:14]} 17. O-O-O {[%emt 0:01:28]} Qf4+ {[%emt 0:03:16]} 18. Kb1 {[%emt 0:01:35]} Qf5+ {[%emt 0:00:08]} 19. Ka1 {[%emt 0:00:43]} d3 {[%emt 0:01:13]} 20. Rd2 {[%emt 0:05:25]} b5 {[%emt 0:05:43]} 21. Rhd1 {[%emt 0:01:32]} Rd8 {[%emt 0:01:00]} 22. Qe4 {[%emt 0:04:15]} Qxe4 {[%emt 0:02:57]} 23. fxe4 {[%emt 0:00:10]} Ke7 {[%emt 0:00:12]} 24. Rxd3 {[%emt 0:00:29]} Rxd3 {[%emt 0:00:04]} 25. Rxd3 {[%emt 0:00:20]} Rc8 {[%emt 0:00:44]} 26. Kb1 {[%emt 0:03:23]} Rc4 {[%emt 0:03:15]} 27. Rd4 {[%emt 0:03:10]} Rc5 {[%emt 0:00:08]} 28. f4 {[%emt 0:01:18]} Rh5 {[%emt 0:00:30]} 29. Rd2 {[%emt 0:01:35]} Rh3 {[%emt 0:01:00]} 30. Rf2 {[%emt 0:00:45]} Kf6 {[%emt 0:01:50]} 31. f5 {[%emt 0:03:09]} e5 {[%emt 0:00:35]} 32. Rd2 {[%emt 0:00:30]} Re3 {[%emt 0:00:49]} 33. Rd6+ {[%emt 0:00:32]} Kg5 {[%emt 0:02:03]} 34. Rd7 {[%emt 0:00:50]} Rxe4 {[%emt 0:00:16]} 35. Rxf7 {[%emt 0:00:27]} Rh4 {[%emt 0:01:26]} 36. Rxg7+ {[%emt 0:01:15]} Kxf5 {[%emt 0:00:06]} 37. Rxa7 {[%emt 0:01:01]} Rxh2 {[%emt 0:03:52]} 38. Rb7 {[%emt 0:00:41]} e4 {[%emt 0:00:30]} 39. Rxb5+ {[%emt 0:00:21]} Kf4 {[%emt 0:00:06]} 40. a4 {[%emt 0:01:29]} e3 {[%emt 0:00:16]} 41. Rb7 {[%emt 0:01:32]} e2 {[%emt 0:01:22]} 42. Rf7+ {[%emt 0:00:54]} Ke3 {[%emt 0:00:35]} 43. Re7+ {[%emt 0:00:53]} Kd3 {[%emt 0:00:07]} 44. Ka2 {[%emt 0:00:42]} Rh1 {[%emt 0:00:55]} 45. Kb3 {[%emt 0:00:45]} e1=Q {[%emt 0:01:06]} 46. Rd7+ {[%emt 0:00:17]} Ke4 {[%emt 0:00:11]} 47. Re7+ {[%emt 0:00:10]} Kd5 {[%emt 0:00:08]} 48. Rxe1 {[%emt 0:00:23]} Rxe1 {[%emt 0:00:09]} 0-1